[Event "Late-Titled-Tuesday-Blitz-January-30-2024"]
[Site "Chess.com"]
[Date "2024.01.30"]
[Round "1"]
[White "Mackster23"]
[Black "wild3000"]
[Result "1-0"]
[WhiteElo "2660"]
[BlackElo "2361"]
[TimeControl "180+1"]
[EndTime "14:05:37 PST"]
[Termination "Mackster23 won by resignation"]

1. e4 {[%clk 0:02:54.6]} 1... e6 {[%clk 0:02:59]} 2. d4 {[%clk 0:02:54.2]} 2...
a6 {[%clk 0:02:59.1]} 3. Nc3 {[%clk 0:02:53.8]} 3... b5 {[%clk 0:02:59.5]} 4.
Bd3 {[%clk 0:02:46.3]} 4... Bb7 {[%clk 0:02:49.2]} 5. a4 {[%clk 0:02:44.8]} 5...
b4 {[%clk 0:02:49.1]} 6. Nce2 {[%clk 0:02:42]} 6... Nf6 {[%clk 0:02:49.1]} 7.
Ng3 {[%clk 0:02:40.7]} 7... h5 {[%clk 0:02:48.5]} 8. h4 {[%clk 0:02:30.7]} 8...
Be7 {[%clk 0:02:46.9]} 9. Nf3 {[%clk 0:02:28.8]} 9... Ng4 {[%clk 0:02:41.4]} 10.
Qe2 {[%clk 0:02:22]} 10... d6 {[%clk 0:02:39.8]} 11. Bd2 {[%clk 0:02:20.6]}
11... a5 {[%clk 0:02:38.4]} 12. O-O-O {[%clk 0:02:19.3]} 12... Nd7 {[%clk
0:02:37.2]} 13. Ng5 {[%clk 0:02:12.1]} 13... c5 {[%clk 0:02:30.8]} 14. f3 {[%clk
0:02:05.3]} 14... Ngf6 {[%clk 0:02:30.3]} 15. e5 {[%clk 0:02:04]} 15... Nd5
{[%clk 0:02:30.4]} 16. exd6 {[%clk 0:01:37.3]} 16... Bxd6 {[%clk 0:02:30]} 17.
Nf5 {[%clk 0:01:37.9]} 17... Bf8 {[%clk 0:02:24.4]} 18. Nxe6 {[%clk 0:01:35.5]}
18... Qf6 {[%clk 0:02:05.5]} 19. Nc7+ {[%clk 0:01:30.9]} 19... Kd8 {[%clk
0:02:05.6]} 20. Nxa8 {[%clk 0:01:26.8]} 20... Bxa8 {[%clk 0:02:06.5]} 21. Bg5
{[%clk 0:01:25]} 21... g6 {[%clk 0:02:00.6]} 22. Bxf6+ {[%clk 0:01:24.4]} 22...
N7xf6 {[%clk 0:02:01.5]} 23. Ng3 {[%clk 0:01:11.7]} 23... Bh6+ {[%clk
0:02:01.2]} 24. Kb1 {[%clk 0:01:12.3]} 24... Re8 {[%clk 0:02:01.2]} 25. Ne4
{[%clk 0:01:07.5]} 25... Nf4 {[%clk 0:01:53.3]} 26. Qf1 {[%clk 0:01:06.3]} 26...
N6d5 {[%clk 0:01:52]} 27. Bb5 {[%clk 0:00:59.5]} 27... Re7 {[%clk 0:01:51.9]}
28. dxc5 {[%clk 0:00:59.5]} 28... Kc7 {[%clk 0:01:48.8]} 29. Qf2 {[%clk
0:00:52.8]} 29... f5 {[%clk 0:01:48.4]} 30. g3 {[%clk 0:00:49.5]} 30... fxe4
{[%clk 0:01:47.2]} 31. fxe4 {[%clk 0:00:47.6]} 31... Rxe4 {[%clk 0:01:36.9]} 32.
gxf4 {[%clk 0:00:47.2]} 32... Bxf4 {[%clk 0:01:35.2]} 33. Rhe1 {[%clk
0:00:46.3]} 33... Ne3 {[%clk 0:01:34.9]} 34. Rd7+ {[%clk 0:00:44.8]} 34... Kc8
{[%clk 0:01:34.4]} 35. Qxf4 {[%clk 0:00:41.8]} 35... Rxf4 {[%clk 0:01:34.1]} 36.
Rxe3 {[%clk 0:00:42.4]} 36... Rf8 {[%clk 0:01:29.5]} 37. Ra7 {[%clk 0:00:40.7]}
37... Rf1+ {[%clk 0:01:23.7]} 38. Bxf1 {[%clk 0:00:39.9]} 1-0

[Event "Late-Titled-Tuesday-Blitz-January-30-2024"]
[Site "Chess.com"]
[Date "2024.01.30"]
[Round "1"]
[White "LUISMIGUELOV"]
[Black "DefiantChair"]
[Result "0-1"]
[WhiteElo "2180"]
[BlackElo "2591"]
[TimeControl "180+1"]
[EndTime "14:05:37 PST"]
[Termination "DefiantChair won by checkmate"]

1. d4 {[%clk 0:02:59]} 1... Nf6 {[%clk 0:02:59.6]} 2. c3 {[%clk 0:02:58.8]} 2...
d5 {[%clk 0:02:57.8]} 3. Bg5 {[%clk 0:02:56.9]} 3... c5 {[%clk 0:02:55.2]} 4. e3
{[%clk 0:02:55.3]} 4... Nc6 {[%clk 0:02:54.2]} 5. Bxf6 {[%clk 0:02:52.1]} 5...
gxf6 {[%clk 0:02:53]} 6. g3 {[%clk 0:02:49.7]} 6... cxd4 {[%clk 0:02:51.8]} 7.
exd4 {[%clk 0:02:48.1]} 7... Bf5 {[%clk 0:02:50]} 8. Bg2 {[%clk 0:02:45.4]} 8...
e6 {[%clk 0:02:48.7]} 9. Ne2 {[%clk 0:02:44.7]} 9... h5 {[%clk 0:02:48]} 10. h4
{[%clk 0:02:42.6]} 10... Bd6 {[%clk 0:02:44.5]} 11. Nd2 {[%clk 0:02:40.8]} 11...
b5 {[%clk 0:02:39.3]} 12. b4 {[%clk 0:02:37.5]} 12... a5 {[%clk 0:02:36.4]} 13.
a3 {[%clk 0:02:36.8]} 13... a4 {[%clk 0:02:28.5]} 14. Nc1 {[%clk 0:02:15]} 14...
Qb8 {[%clk 0:02:25.1]} 15. Qe2 {[%clk 0:02:11.2]} 15... Bxg3 {[%clk 0:02:23.8]}
16. fxg3 {[%clk 0:02:10.2]} 16... Qxg3+ {[%clk 0:02:24.7]} 17. Qf2 {[%clk
0:01:56.9]} 17... Qxc3 {[%clk 0:02:24]} 18. Bxd5 {[%clk 0:01:35.4]} 18... exd5
{[%clk 0:02:17.4]} 19. Qxf5 {[%clk 0:01:34.1]} 19... Qxa1 {[%clk 0:02:12.9]} 20.
Qxd5 {[%clk 0:01:20.2]} 20... Qxc1+ {[%clk 0:02:11.8]} 21. Ke2 {[%clk
0:01:20.3]} 21... Nxd4+ {[%clk 0:02:01]} 22. Kd3 {[%clk 0:01:00]} 22... Qc2+
{[%clk 0:01:55.9]} 23. Ke3 {[%clk 0:00:47.9]} 23... Rd8 {[%clk 0:01:55.7]} 24.
Qe4+ {[%clk 0:00:28.9]} 24... Qxe4+ {[%clk 0:01:55.4]} 25. Nxe4 {[%clk 0:00:29]}
25... Ke7 {[%clk 0:01:52]} 26. Nc5 {[%clk 0:00:23.7]} 26... Rhe8 {[%clk
0:01:50.4]} 27. Kf4 {[%clk 0:00:22.6]} 27... Ne6+ {[%clk 0:01:50]} 28. Nxe6
{[%clk 0:00:18.5]} 28... fxe6 {[%clk 0:01:50.9]} 29. Rg1 {[%clk 0:00:17.4]}
29... Rd4+ {[%clk 0:01:50.6]} 30. Ke3 {[%clk 0:00:16.3]} 30... Rxh4 {[%clk
0:01:50]} 31. Rg3 {[%clk 0:00:14.2]} 31... Rc8 {[%clk 0:01:48.9]} 32. Kd3 {[%clk
0:00:12.9]} 32... Rg4 {[%clk 0:01:48.2]} 33. Re3 {[%clk 0:00:09.6]} 33... h4
{[%clk 0:01:48.4]} 34. Rh3 {[%clk 0:00:07.5]} 34... Rg3+ {[%clk 0:01:48.7]} 35.
Kd4 {[%clk 0:00:07.3]} 35... Rc4# {[%clk 0:01:47.3]} 0-1

[Event "Late-Titled-Tuesday-Blitz-January-30-2024"]
[Site "Chess.com"]
[Date "2024.01.30"]
[Round "1"]
[White "Noki102"]
[Black "GHANDEEVAM2003"]
[Result "0-1"]
[WhiteElo "2528"]
[BlackElo "3034"]
[TimeControl "180+1"]
[EndTime "14:05:39 PST"]
[Termination "GHANDEEVAM2003 won by resignation"]

1. d4 {[%clk 0:03:00.9]} 1... d6 {[%clk 0:02:54.5]} 2. Nf3 {[%clk 0:03:01.4]}
2... g6 {[%clk 0:02:54.6]} 3. Bf4 {[%clk 0:03:00.3]} 3... Bg7 {[%clk 0:02:55.1]}
4. Nc3 {[%clk 0:03:00.8]} 4... Nc6 {[%clk 0:02:55.5]} 5. Qd2 {[%clk 0:02:58.7]}
5... Bg4 {[%clk 0:02:53.1]} 6. e3 {[%clk 0:02:54.8]} 6... e5 {[%clk 0:02:52.5]}
7. Bg3 {[%clk 0:02:51.7]} 7... Bxf3 {[%clk 0:02:51.7]} 8. gxf3 {[%clk
0:02:50.6]} 8... exd4 {[%clk 0:02:51.9]} 9. exd4 {[%clk 0:02:48.3]} 9... Nxd4
{[%clk 0:02:52.6]} 10. O-O-O {[%clk 0:02:40.5]} 10... Nf5 {[%clk 0:02:50]} 11.
Bb5+ {[%clk 0:02:10.4]} 11... c6 {[%clk 0:02:43.8]} 12. Rhe1+ {[%clk 0:01:17.6]}
12... Nge7 {[%clk 0:02:42.6]} 13. Ba4 {[%clk 0:00:34.3]} 13... d5 {[%clk
0:02:38.3]} 14. Nxd5 {[%clk 0:00:32.1]} 14... Bh6 {[%clk 0:02:10.1]} 15. Bf4
{[%clk 0:00:21.4]} 15... Qxd5 {[%clk 0:02:05.8]} 16. Qxd5 {[%clk 0:00:17.7]}
16... Bxf4+ {[%clk 0:02:06.4]} 17. Kb1 {[%clk 0:00:17.9]} 17... O-O {[%clk
0:02:06.8]} 18. Qe4 {[%clk 0:00:16.2]} 18... Bxh2 {[%clk 0:02:06.3]} 19. Rh1
{[%clk 0:00:15.1]} 19... Bc7 {[%clk 0:02:06.9]} 20. Bb3 {[%clk 0:00:13.9]} 20...
Rad8 {[%clk 0:02:04.3]} 21. Rxd8 {[%clk 0:00:13.2]} 21... Rxd8 {[%clk
0:02:04.9]} 22. a3 {[%clk 0:00:13.9]} 22... Kg7 {[%clk 0:02:04.5]} 23. Qg4
{[%clk 0:00:10.9]} 23... Be5 {[%clk 0:02:01.9]} 24. Re1 {[%clk 0:00:10.8]} 24...
Bf6 {[%clk 0:01:59.4]} 25. Qc4 {[%clk 0:00:10.8]} 25... Nd5 {[%clk 0:01:58.2]}
26. Qg4 {[%clk 0:00:08.4]} 26... h5 {[%clk 0:01:57]} 27. Qh3 {[%clk 0:00:07.6]}
27... Nd4 {[%clk 0:01:51.9]} 28. Bxd5 {[%clk 0:00:06.5]} 28... Rxd5 {[%clk
0:01:52.8]} 29. c3 {[%clk 0:00:06.6]} 29... Ne6 {[%clk 0:01:52.1]} 30. Rxe6
{[%clk 0:00:04.6]} 30... fxe6 {[%clk 0:01:52.8]} 31. Qxe6 {[%clk 0:00:05.5]}
31... Re5 {[%clk 0:01:51.8]} 32. Qd7+ {[%clk 0:00:05.5]} 32... Re7 {[%clk
0:01:52.3]} 33. Qxb7 {[%clk 0:00:06.4]} 33... Rxb7 {[%clk 0:01:51]} 0-1

[Event "Late-Titled-Tuesday-Blitz-January-30-2024"]
[Site "Chess.com"]
[Date "2024.01.30"]
[Round "1"]
[White "Azerichess"]
[Black "KnobbedHornbill"]
[Result "1-0"]
[WhiteElo "3075"]
[BlackElo "2536"]
[TimeControl "180+1"]
[EndTime "14:05:40 PST"]
[Termination "Azerichess won by resignation"]

1. d4 {[%clk 0:03:00.9]} 1... d5 {[%clk 0:03:00.2]} 2. c4 {[%clk 0:03:00.4]}
2... c6 {[%clk 0:03:00.8]} 3. Nf3 {[%clk 0:03:00.1]} 3... Nf6 {[%clk 0:03:01.3]}
4. Nc3 {[%clk 0:03:00.7]} 4... dxc4 {[%clk 0:03:01.8]} 5. a4 {[%clk 0:03:00.6]}
5... Bf5 {[%clk 0:03:01]} 6. Ne5 {[%clk 0:03:00.8]} 6... Nbd7 {[%clk 0:03:00.9]}
7. Nxc4 {[%clk 0:03:01.1]} 7... Nb6 {[%clk 0:03:01.6]} 8. Ne5 {[%clk 0:03:00.6]}
8... a5 {[%clk 0:03:02.1]} 9. Rg1 {[%clk 0:03:00.7]} 9... g6 {[%clk 0:02:41.8]}
10. g4 {[%clk 0:03:00.1]} 10... Be6 {[%clk 0:02:41.7]} 11. e4 {[%clk 0:02:59.5]}
11... Bg7 {[%clk 0:02:40.8]} 12. Be3 {[%clk 0:02:56.2]} 12... Nfd7 {[%clk
0:02:38.9]} 13. f4 {[%clk 0:02:53.5]} 13... Nxe5 {[%clk 0:02:35.6]} 14. dxe5
{[%clk 0:02:53.1]} 14... Nc4 {[%clk 0:02:29.5]} 15. Qc1 {[%clk 0:02:44.7]} 15...
Nxe3 {[%clk 0:02:20.4]} 16. Qxe3 {[%clk 0:02:45.6]} 16... O-O {[%clk 0:02:10.9]}
17. h4 {[%clk 0:02:35.2]} 17... Bb3 {[%clk 0:01:34.5]} 18. Be2 {[%clk
0:02:24.5]} 18... Qc7 {[%clk 0:01:33.5]} 19. Ra3 {[%clk 0:01:59.1]} 19... Be6
{[%clk 0:01:28.5]} 20. h5 {[%clk 0:01:56.7]} 20... Rad8 {[%clk 0:01:19.7]} 21.
g5 {[%clk 0:01:36.2]} 21... f6 {[%clk 0:00:41.2]} 22. gxf6 {[%clk 0:01:26.6]}
22... exf6 {[%clk 0:00:42.1]} 23. hxg6 {[%clk 0:01:25.9]} 23... fxe5 {[%clk
0:00:40.9]} 24. f5 {[%clk 0:01:20.8]} 24... Bc8 {[%clk 0:00:39.9]} 25. Bc4+
{[%clk 0:01:16.7]} 25... Kh8 {[%clk 0:00:36.8]} 26. Rh1 {[%clk 0:01:15.4]} 1-0

[Event "Late-Titled-Tuesday-Blitz-January-30-2024"]
[Site "Chess.com"]
[Date "2024.01.30"]
[Round "1"]
[White "bitter-cikolata"]
[Black "bn1462"]
[Result "1-0"]
[WhiteElo "2548"]
[BlackElo "1954"]
[TimeControl "180+1"]
[EndTime "14:05:40 PST"]
[Termination "bitter-cikolata won by resignation"]

1. e4 {[%clk 0:02:59.5]} 1... c5 {[%clk 0:02:59.1]} 2. Nf3 {[%clk 0:02:59.2]}
2... Nc6 {[%clk 0:02:58.8]} 3. d4 {[%clk 0:02:58.8]} 3... cxd4 {[%clk
0:02:59.2]} 4. Nxd4 {[%clk 0:02:58.9]} 4... Nf6 {[%clk 0:02:59.6]} 5. Nc3 {[%clk
0:02:59.1]} 5... e5 {[%clk 0:02:59.6]} 6. Ndb5 {[%clk 0:02:58.1]} 6... d6 {[%clk
0:02:59.9]} 7. Bg5 {[%clk 0:02:58.8]} 7... a6 {[%clk 0:02:58.3]} 8. Na3 {[%clk
0:02:59.4]} 8... b5 {[%clk 0:02:57.9]} 9. Nd5 {[%clk 0:02:59.2]} 9... Be7 {[%clk
0:02:58.4]} 10. Bxf6 {[%clk 0:02:59.2]} 10... Bxf6 {[%clk 0:02:58.7]} 11. c4
{[%clk 0:02:59.7]} 11... b4 {[%clk 0:02:55.4]} 12. Nc2 {[%clk 0:02:58.3]} 12...
O-O {[%clk 0:02:55.2]} 13. h4 {[%clk 0:02:57.4]} 13... a5 {[%clk 0:02:49.2]} 14.
g3 {[%clk 0:02:56]} 14... g6 {[%clk 0:02:47.4]} 15. Bh3 {[%clk 0:02:55.8]} 15...
Bg7 {[%clk 0:02:23]} 16. Kf1 {[%clk 0:02:53.6]} 16... f5 {[%clk 0:02:02.2]} 17.
Kg2 {[%clk 0:02:52.3]} 17... fxe4 {[%clk 0:01:58.3]} 18. Bxc8 {[%clk 0:02:51.9]}
18... Rxc8 {[%clk 0:01:57]} 19. h5 {[%clk 0:02:51.6]} 19... Qg5 {[%clk
0:01:38.8]} 20. hxg6 {[%clk 0:02:49.9]} 20... hxg6 {[%clk 0:01:39.7]} 21. Nde3
{[%clk 0:02:46.3]} 21... Nd4 {[%clk 0:01:36.5]} 22. b3 {[%clk 0:02:28]} 22...
Rf7 {[%clk 0:01:21.7]} 23. Qd2 {[%clk 0:01:57.3]} 23... Rcf8 {[%clk 0:01:14.1]}
24. Raf1 {[%clk 0:01:57.8]} 24... Rf3 {[%clk 0:00:31.9]} 25. Rh4 {[%clk
0:01:45.1]} 25... R3f7 {[%clk 0:00:18.6]} 26. Rxe4 {[%clk 0:01:40.2]} 26... Nf3
{[%clk 0:00:18.5]} 27. Qd5 {[%clk 0:01:37.4]} 27... Nd4 {[%clk 0:00:17.1]} 28.
Nxd4 {[%clk 0:01:35.8]} 28... exd4 {[%clk 0:00:18]} 29. Qxg5 {[%clk 0:01:35.9]}
29... dxe3 {[%clk 0:00:16.6]} 30. Qxe3 {[%clk 0:01:34.5]} 1-0

[Event "Late-Titled-Tuesday-Blitz-January-30-2024"]
[Site "Chess.com"]
[Date "2024.01.30"]
[Round "1"]
[White "WindWhistler11"]
[Black "KaydenTroffChess"]
[Result "0-1"]
[WhiteElo "2477"]
[BlackElo "2848"]
[TimeControl "180+1"]
[EndTime "14:05:43 PST"]
[Termination "KaydenTroffChess won by resignation"]

1. Nf3 {[%clk 0:02:51.8]} 1... Nf6 {[%clk 0:02:59.6]} 2. g3 {[%clk 0:02:52.7]}
2... g6 {[%clk 0:02:59.9]} 3. d3 {[%clk 0:02:53.6]} 3... Bg7 {[%clk 0:03:00.3]}
4. Nbd2 {[%clk 0:02:54.5]} 4... d5 {[%clk 0:03:00.8]} 5. e4 {[%clk 0:02:55.4]}
5... dxe4 {[%clk 0:03:00.8]} 6. dxe4 {[%clk 0:02:55.6]} 6... Be6 {[%clk
0:02:54.3]} 7. Ng5 {[%clk 0:02:53.9]} 7... Bg4 {[%clk 0:02:52.7]} 8. f3 {[%clk
0:02:51.4]} 8... Bc8 {[%clk 0:02:42.5]} 9. Bc4 {[%clk 0:02:50.9]} 9... e6 {[%clk
0:02:40.4]} 10. Qe2 {[%clk 0:02:44.8]} 10... h6 {[%clk 0:02:37.4]} 11. Nh3
{[%clk 0:02:42.9]} 11... Nc6 {[%clk 0:02:38]} 12. c3 {[%clk 0:02:42.2]} 12...
O-O {[%clk 0:02:36.4]} 13. Nf2 {[%clk 0:02:24.3]} 13... a5 {[%clk 0:02:32.7]}
14. Nf1 {[%clk 0:02:18.9]} 14... Ne5 {[%clk 0:02:30.9]} 15. Bb3 {[%clk 0:02:16]}
15... b6 {[%clk 0:02:31.1]} 16. f4 {[%clk 0:02:12.4]} 16... Ba6 {[%clk
0:02:30.5]} 17. c4 {[%clk 0:02:12.7]} 17... Nc6 {[%clk 0:02:29.9]} 18. Be3
{[%clk 0:02:07.7]} 18... Nd4 {[%clk 0:02:13.4]} 19. Bxd4 {[%clk 0:01:59]} 19...
Qxd4 {[%clk 0:02:12.9]} 20. Rd1 {[%clk 0:01:59.5]} 20... Qc5 {[%clk 0:02:12.4]}
21. Nd3 {[%clk 0:01:57.4]} 21... Qc6 {[%clk 0:02:08.5]} 22. Ne5 {[%clk
0:01:51.2]} 22... Qxe4 {[%clk 0:02:04.3]} 23. Qxe4 {[%clk 0:01:44.3]} 23... Nxe4
{[%clk 0:02:05.2]} 24. Rd7 {[%clk 0:01:44.3]} 24... Rac8 {[%clk 0:02:02]} 25.
Ne3 {[%clk 0:01:32.9]} 25... Nc5 {[%clk 0:01:59.2]} 26. Rd2 {[%clk 0:01:26.1]}
26... Rfd8 {[%clk 0:01:55.9]} 27. Rxd8+ {[%clk 0:01:14.3]} 27... Rxd8 {[%clk
0:01:55.3]} 28. Ke2 {[%clk 0:01:15]} 28... Bxe5 {[%clk 0:01:17.8]} 29. fxe5
{[%clk 0:01:14.7]} 29... Rd4 {[%clk 0:01:18.5]} 30. Rd1 {[%clk 0:00:59.4]} 30...
Re4 {[%clk 0:01:17.8]} 31. Kd2 {[%clk 0:00:40.4]} 31... h5 {[%clk 0:01:07.9]}
0-1

[Event "Late-Titled-Tuesday-Blitz-January-30-2024"]
[Site "Chess.com"]
[Date "2024.01.30"]
[Round "1"]
[White "ElCoachRene"]
[Black "guillembaches"]
[Result "0-1"]
[WhiteElo "1945"]
[BlackElo "2547"]
[TimeControl "180+1"]
[EndTime "14:05:43 PST"]
[Termination "guillembaches won on time"]

1. Nf3 {[%clk 0:03:00.9]} 1... d5 {[%clk 0:02:59.8]} 2. d4 {[%clk 0:03:01]} 2...
Nf6 {[%clk 0:02:59.9]} 3. Bf4 {[%clk 0:03:01.5]} 3... e6 {[%clk 0:02:59.8]} 4.
e3 {[%clk 0:03:01.6]} 4... c5 {[%clk 0:02:59.1]} 5. c3 {[%clk 0:03:01.1]} 5...
Nc6 {[%clk 0:02:59]} 6. Nbd2 {[%clk 0:03:00.9]} 6... cxd4 {[%clk 0:02:58.5]} 7.
exd4 {[%clk 0:03:00.4]} 7... Nh5 {[%clk 0:02:57.7]} 8. Be5 {[%clk 0:02:54.9]}
8... f6 {[%clk 0:02:53.5]} 9. Bg3 {[%clk 0:02:52.9]} 9... g6 {[%clk 0:02:48]}
10. Bd3 {[%clk 0:02:48.9]} 10... Bg7 {[%clk 0:02:46.9]} 11. Qe2 {[%clk 0:02:48]}
11... O-O {[%clk 0:02:43.9]} 12. O-O-O {[%clk 0:02:30.4]} 12... Nxg3 {[%clk
0:02:34]} 13. hxg3 {[%clk 0:02:28.9]} 13... e5 {[%clk 0:02:33.6]} 14. Rxh7
{[%clk 0:02:08.6]} 14... Kxh7 {[%clk 0:02:19.6]} 15. Ng5+ {[%clk 0:01:59.2]}
15... fxg5 {[%clk 0:02:11.8]} 16. Qh5+ {[%clk 0:01:50.3]} 16... Kg8 {[%clk
0:01:59]} 17. Bxg6 {[%clk 0:01:23.8]} 17... Rxf2 {[%clk 0:01:49.7]} 18. Nf3
{[%clk 0:01:05]} 18... Qb6 {[%clk 0:01:28.8]} 19. Bh7+ {[%clk 0:00:26.4]} 19...
Kf8 {[%clk 0:01:22.4]} 20. Bc2 {[%clk 0:00:20.4]} 20... Bf5 {[%clk 0:01:18.4]}
21. Nxg5 {[%clk 0:00:15.6]} 21... Rxc2+ {[%clk 0:01:15.4]} 0-1

[Event "Late-Titled-Tuesday-Blitz-January-30-2024"]
[Site "Chess.com"]
[Date "2024.01.30"]
[Round "1"]
[White "crescentmoon2411"]
[Black "joksijoksi"]
[Result "1-0"]
[WhiteElo "3012"]
[BlackElo "2525"]
[TimeControl "180+1"]
[EndTime "14:05:46 PST"]
[Termination "crescentmoon2411 won by resignation"]

1. d4 {[%clk 0:03:00.5]} 1... d5 {[%clk 0:02:58]} 2. Nf3 {[%clk 0:03:00]} 2...
Nf6 {[%clk 0:02:52.9]} 3. c4 {[%clk 0:03:00.4]} 3... c6 {[%clk 0:02:51.8]} 4.
Nc3 {[%clk 0:03:00.1]} 4... dxc4 {[%clk 0:02:50.2]} 5. a4 {[%clk 0:02:59.9]}
5... Bf5 {[%clk 0:02:49.6]} 6. Ne5 {[%clk 0:02:58.4]} 6... e6 {[%clk 0:02:49.9]}
7. f3 {[%clk 0:02:57.7]} 7... Bb4 {[%clk 0:02:49.1]} 8. Kf2 {[%clk 0:02:57.7]}
8... O-O {[%clk 0:02:38.2]} 9. e4 {[%clk 0:02:56.8]} 9... Bg6 {[%clk 0:02:37.4]}
10. Be3 {[%clk 0:02:55.3]} 10... Bxc3 {[%clk 0:02:27.1]} 11. bxc3 {[%clk
0:02:55.1]} 11... b5 {[%clk 0:02:27.1]} 12. h4 {[%clk 0:02:53.5]} 12... h5
{[%clk 0:02:00.5]} 13. Kg1 {[%clk 0:02:42]} 13... Bh7 {[%clk 0:01:58.4]} 14. g4
{[%clk 0:02:30.7]} 14... hxg4 {[%clk 0:01:57.6]} 15. h5 {[%clk 0:02:30.1]} 15...
Nbd7 {[%clk 0:01:49.9]} 16. Nxc6 {[%clk 0:02:28]} 16... Qc7 {[%clk 0:01:49.8]}
17. Ne7+ {[%clk 0:02:23.5]} 17... Kh8 {[%clk 0:01:48]} 18. e5 {[%clk 0:02:17.2]}
18... Nxe5 {[%clk 0:01:38.2]} 19. dxe5 {[%clk 0:02:16]} 19... Qxe5 {[%clk
0:01:37.8]} 20. Bd4 {[%clk 0:02:13.8]} 20... Qg3+ {[%clk 0:01:36.7]} 21. Bg2
{[%clk 0:02:14.1]} 21... Rad8 {[%clk 0:01:20.5]} 22. Qe1 {[%clk 0:02:13.1]}
22... Qf4 {[%clk 0:00:52.7]} 23. Qe5 {[%clk 0:02:04.2]} 23... Rxd4 {[%clk
0:00:17.3]} 24. Qxd4 {[%clk 0:02:02.8]} 24... Qg5 {[%clk 0:00:16.7]} 25. f4
{[%clk 0:01:59.1]} 25... Qh6 {[%clk 0:00:12.8]} 26. axb5 {[%clk 0:01:58]} 26...
g3 {[%clk 0:00:09.5]} 27. Bf3 {[%clk 0:01:51.8]} 27... Nd5 {[%clk 0:00:08.2]}
28. Nxd5 {[%clk 0:01:49.9]} 28... exd5 {[%clk 0:00:09.1]} 29. Kg2 {[%clk
0:01:47.6]} 29... Re8 {[%clk 0:00:07.3]} 30. Rhe1 {[%clk 0:01:44.3]} 30... Be4
{[%clk 0:00:06]} 31. Bxe4 {[%clk 0:01:43]} 31... dxe4 {[%clk 0:00:05.8]} 32.
Rxe4 {[%clk 0:01:43.6]} 32... Rxe4 {[%clk 0:00:02.2]} 33. Qxe4 {[%clk
0:01:44.5]} 33... Qxh5 {[%clk 0:00:02.5]} 34. Rh1 {[%clk 0:01:43.7]} 1-0

[Event "Late-Titled-Tuesday-Blitz-January-30-2024"]
[Site "Chess.com"]
[Date "2024.01.30"]
[Round "1"]
[White "LittleChessFan"]
[Black "wadsy27"]
[Result "0-1"]
[WhiteElo "2258"]
[BlackElo "2609"]
[TimeControl "180+1"]
[EndTime "14:05:47 PST"]
[Termination "wadsy27 won by resignation"]

1. d4 {[%clk 0:02:57.8]} 1... Nf6 {[%clk 0:02:58.5]} 2. c4 {[%clk 0:02:57.9]}
2... c5 {[%clk 0:02:59]} 3. d5 {[%clk 0:02:58]} 3... e6 {[%clk 0:02:59.7]} 4.
Nc3 {[%clk 0:02:58]} 4... exd5 {[%clk 0:03:00.4]} 5. cxd5 {[%clk 0:02:58.9]}
5... d6 {[%clk 0:03:00.9]} 6. g3 {[%clk 0:02:58.7]} 6... g6 {[%clk 0:03:00.4]}
7. Bg2 {[%clk 0:02:59.1]} 7... Bg7 {[%clk 0:03:00.9]} 8. Nf3 {[%clk 0:02:59.5]}
8... O-O {[%clk 0:03:01.2]} 9. O-O {[%clk 0:02:59.9]} 9... Re8 {[%clk
0:03:01.8]} 10. Bf4 {[%clk 0:02:58.4]} 10... h6 {[%clk 0:03:01.9]} 11. Nd2
{[%clk 0:02:53.7]} 11... g5 {[%clk 0:02:51.1]} 12. Be3 {[%clk 0:02:53.3]} 12...
Ng4 {[%clk 0:02:48.2]} 13. Nc4 {[%clk 0:02:49.6]} 13... a6 {[%clk 0:02:38.3]}
14. a4 {[%clk 0:02:49.2]} 14... Nxe3 {[%clk 0:02:38]} 15. fxe3 {[%clk
0:02:49.3]} 15... Qc7 {[%clk 0:02:22.8]} 16. e4 {[%clk 0:02:43.9]} 16... Nd7
{[%clk 0:02:15.1]} 17. a5 {[%clk 0:02:38.2]} 17... Ne5 {[%clk 0:02:12.6]} 18.
Nb6 {[%clk 0:02:17.7]} 18... Rb8 {[%clk 0:02:10.4]} 19. h3 {[%clk 0:02:15.5]}
19... Bd7 {[%clk 0:01:58.6]} 20. Kh2 {[%clk 0:02:12.2]} 20... Re7 {[%clk
0:01:54.9]} 21. e3 {[%clk 0:02:08.5]} 21... Rbe8 {[%clk 0:01:41.6]} 22. Qd2
{[%clk 0:01:57.4]} 22... g4 {[%clk 0:01:37.6]} 23. h4 {[%clk 0:01:55.4]} 23...
Bb5 {[%clk 0:01:28.8]} 24. Nxb5 {[%clk 0:01:53.9]} 24... axb5 {[%clk 0:01:29.7]}
25. Qe2 {[%clk 0:01:42.3]} 25... c4 {[%clk 0:01:14.6]} 26. b3 {[%clk 0:01:19.2]}
26... Nf3+ {[%clk 0:01:05.6]} 27. Kh1 {[%clk 0:01:05.9]} 27... Bxa1 {[%clk
0:01:02.5]} 28. Rxa1 {[%clk 0:01:06.8]} 28... Rxe4 {[%clk 0:01:01.3]} 29. bxc4
{[%clk 0:01:03.7]} 29... Rxe3 {[%clk 0:00:57.6]} 30. Qc2 {[%clk 0:00:58.4]}
30... Re1+ {[%clk 0:00:51.7]} 31. Bf1 {[%clk 0:00:54]} 31... Rxa1 {[%clk
0:00:49.2]} 0-1